bitfinex/quotes_BTCUSD_20251224
["timestamp","ask_amount","ask_price","bid_price","bid_amount"]
[1766547846173,0.01145016,87335.0,87325.0,0.01145147]
[1766547846673,0.01145016,87335.0,87323.0,0.02293173]
[1766547846674,0.01145042,87333.0,87323.0,0.02293173]
[1766547846988,0.43787999,87337.0,87323.0,0.02293173]
[1766547846989,0.01144963,87339.0,87327.0,0.01145121]
[1766547847217,0.01148,87340.0,87330.0,0.01145081]
[1766547847418,0.01148,87340.0,87331.0,0.01145068]
[1766547847598,0.01148,87340.0,87330.0,0.01145081]
[1766547847941,0.0229295,87340.0,87331.0,0.01145068]
[1766547848620,0.01148,87340.0,87331.0,0.01145068]
[1766547849856,0.000549,87331.0,87328.0,0.04584951]
[1766547850237,0.36914976,87338.0,87328.0,0.04584951]
[1766547850442,0.0114499,87337.0,87328.0,0.05730059]
[1766547850646,0.0114499,87337.0,87328.0,0.04584951]
[1766547851048,0.0114499,87337.0,87328.0,0.05730059]
[1766547852235,0.36914976,87338.0,87328.0,0.05730059]
[1766547852627,0.36914976,87338.0,87329.0,0.01145094]
[1766547852858,0.3577,87338.0,87329.0,0.01145094]
[1766547853218,0.36914976,87338.0,87329.0,0.01145094]
[1766547854354,0.36914976,87338.0,87328.0,0.05730059]
[1766547854492,0.3577,87338.0,87329.0,0.01145094]
[1766547855448,0.36914976,87338.0,87329.0,0.01145094]
[1766547855642,0.36914976,87338.0,87328.0,0.01148]
[1766547855844,0.36914976,87338.0,87329.0,0.01145094]
[1766547856309,0.001099,87329.0,87328.0,0.01148]
[1766547857036,0.01145029,87334.0,87328.0,0.01148]
[1766547857233,0.01145042,87333.0,87328.0,0.01148]
[1766547857435,0.01145029,87334.0,87328.0,0.01148]
[1766547857637,0.01145029,87334.0,87328.0,0.010931]
[1766547857846,0.3577,87330.0,87323.0,0.0001704]
[1766547858058,0.36915081,87330.0,87324.0,0.01148]
[1766547858259,0.3577,87328.0,87324.0,0.01148]
[1766547858470,0.3577,87328.0,87322.0,0.01148]
[1766547859559,0.36915108,87328.0,87320.0,0.01148]
[1766547859794,0.01145121,87327.0,87320.0,0.01148]
[1766547860062,0.3577,87326.0,87320.0,0.01148]
[1766547863337,0.36915134,87326.0,87320.0,0.01148]
[1766547863582,0.01145147,87325.0,87320.0,0.01148]
[1766547863776,0.3577,87324.0,87320.0,0.01148]
[1766547866916,0.01145186,87322.0,87308.0,0.00045655]
[1766547867112,0.10996753,87335.0,87308.0,0.00045655]
[1766547867113,0.3577,87319.0,87308.0,0.01191025]
[1766547867317,0.3577,87317.0,87308.0,0.01191025]
[1766547868250,0.01148,87318.0,87308.0,0.00045655]
[1766547868433,0.3641,87315.0,87308.0,0.00045655]
[1766547868631,0.37555278,87315.0,87308.0,0.00045655]
[1766547870529,0.37555304,87313.0,87308.0,0.00045655]
[1766547870717,0.3641,87313.0,87308.0,0.00045655]
[1766547872158,0.3641,87311.0,87308.0,0.00045655]
[1766547872333,0.37555331,87311.0,87308.0,5.5e-07]
[1766547873016,0.3641,87309.0,87308.0,5.5e-07]
[1766547873446,0.363645,87309.0,87308.0,5.5e-07]
[1766547878009,0.01145134,87326.0,87313.0,0.01145304]
[1766547878249,0.01145134,87326.0,87317.0,0.01145252]
[1766547878250,0.01148,87325.0,87317.0,0.01145252]
[1766547878548,0.01148,87325.0,87308.0,5.5e-07]
[1766547878549,0.00653882,87324.0,87321.0,0.01145199]
[1766547878744,0.01148,87323.0,87322.0,0.01145186]
[1766547878889,0.37555042,87333.0,87324.0,0.0114516]
[1766547879134,0.01144976,87338.0,87327.0,0.01145121]
[1766547879342,0.01144976,87338.0,87334.0,0.01145029]
[1766547879343,0.01148,87337.0,87334.0,0.01145029]
[1766547879544,0.01148,87337.0,87328.0,0.01145108]
[1766547879545,0.000549,87334.0,87328.0,0.01145108]
[1766547879796,0.000549,87334.0,87329.0,0.01145094]
[1766547880002,0.01148,87337.0,87323.0,0.04582274]
[1766547880003,0.36027,87328.0,87323.0,0.04582274]
[1766547880176,0.36027,87328.0,87289.0,0.45824417]
[1766547880177,0.0458,87338.0,87328.0,0.01145108]
[1766547880379,0.01148,87337.0,87328.0,0.0687059]
[1766547880587,0.01148,87337.0,87332.0,0.01145055]
[1766547880974,0.01148,87336.0,87331.0,0.01145068]
[1766547881200,0.01148,87336.0,87329.0,0.01145094]
[1766547881829,0.01148,87336.0,87330.0,0.01145081]
[1766547882888,0.01148,87336.0,87332.0,0.01145055]
[1766547883100,0.01148,87336.0,87331.0,0.01145068]
[1766547883297,0.0001,87339.0,87333.0,0.01145042]
[1766547883495,0.01148,87335.0,87332.0,0.01145055]
[1766547887202,0.01148,87335.0,87330.0,0.06870436]
[1766547887379,0.000549,87332.0,87329.0,0.01145094]
[1766547887586,0.01148,87335.0,87329.0,0.01145094]
[1766547889913,0.01148,87335.0,87328.0,0.01145108]
[1766547890719,0.01148,87335.0,87329.0,0.01145094]
[1766547890916,0.01148,87335.0,87328.0,0.01145108]
[1766547892292,0.01148,87335.0,87330.0,0.01145081]
[1766547892501,0.01148,87335.0,87329.0,0.01145094]
[1766547892718,0.01148,87335.0,87330.0,0.01145081]
[1766547892887,0.01148,87335.0,87329.0,0.01145094]
[1766547893089,0.37175,87335.0,87326.0,0.068708]
[1766547893284,0.01145042,87333.0,87325.0,0.01154963]
[1766547893486,0.01145042,87333.0,87319.0,0.01145226]
[1766547893487,0.36027,87324.0,87319.0,0.01145226]
[1766547893805,0.01148,87323.0,87319.0,0.06871294]
[1766547894171,0.01148,87323.0,87321.0,0.01145199]
[1766547894397,0.01145055,87332.0,87321.0,0.01145199]
[1766547894398,0.36027,87332.0,87325.0,0.01145147]
[1766547894593,0.05724789,87340.0,87329.0,0.01145094]
[1766547894594,0.01148,87331.0,87329.0,0.01145094]
[1766547894753,0.01148,87330.0,87328.0,0.01145108]
[1766547894955,0.01148,87330.0,87326.0,0.06870755]
[1766547894956,0.01148,87330.0,87326.0,0.01145134]
[1766547895159,0.01148,87330.0,87327.0,0.01145121]
[1766547896759,0.000549,87327.0,87324.0,0.05725785]
[1766547896948,0.01148,87330.0,87324.0,0.05725785]
[1766547897557,0.01148,87330.0,87326.0,0.01145134]
[1766547898228,0.01148,87330.0,87327.0,0.01145121]
[1766547899219,0.01148,87330.0,87327.0,0.06870667]
[1766547899427,0.01093,87330.0,87327.0,0.06870667]
[1766547900372,0.0458,87334.0,87330.0,0.01145081]
[1766547900487,0.01148,87333.0,87329.0,0.01145094]
[1766547900689,0.01148,87333.0,87327.0,0.01145121]
[1766547900972,0.01148,87332.0,87326.0,0.01145134]
[1766547901123,0.01148,87332.0,87327.0,0.01145121]
[1766547901507,0.0114499,87337.0,87327.0,0.01145121]
[1766547901508,0.0001,87339.0,87336.0,0.06870018]
[1766547901727,0.05728,87338.0,87336.0,0.06870018]
[1766547901930,0.05728,87338.0,87336.0,0.01145003]
[1766547902147,0.01144859,87347.0,87337.0,0.0114499]
[1766547902148,0.36623359,87347.0,87337.0,0.0114499]
[1766547902348,0.06868702,87353.0,87342.0,0.01144924]
[1766547902349,0.01148,87346.0,87342.0,0.01144924]
[1766547902718,0.01183713,87346.0,87343.0,0.01144911]
[1766547903457,0.01183713,87346.0,87341.0,0.01144937]
[1766547903458,0.01183713,87346.0,87342.0,0.01144924]
[1766547903657,0.01183713,87346.0,87343.0,0.01144911]
[1766547904056,0.000549,87343.0,87341.0,0.01144937]
[1766547904261,0.00055,87341.0,87336.0,0.01145003]
[1766547904830,0.37938885,87345.0,87335.0,0.01145016]
[1766547904950,0.37938885,87345.0,87336.0,0.01145003]
[1766547905146,0.36794,87345.0,87336.0,0.01145003]
[1766547905352,0.36794,87345.0,87338.0,0.01144976]
[1766547905578,0.36794,87345.0,87327.0,0.2290224]
[1766547905579,0.36794,87337.0,87323.0,0.00165]
[1766547905817,0.36794,87335.0,87329.0,0.01145094]
[1766547906018,0.36794,87335.0,87326.0,0.01145134]
[1766547906019,0.36794,87335.0,87327.0,0.01145121]
[1766547906220,0.36794,87335.0,87327.0,0.06870705]
[1766547906685,0.36794,87335.0,87330.0,0.01145081]
[1766547908504,0.36794,87335.0,87329.0,0.01145094]
[1766547909077,0.36794,87335.0,87330.0,0.01145081]
[1766547909522,0.36794,87335.0,87328.0,0.01145108]
[1766547909711,0.36794,87335.0,87325.0,0.01145147]
[1766547910208,0.36794,87335.0,87326.0,0.01145134]
[1766547910416,0.36794,87335.0,87330.0,0.01145081]
[1766547910610,0.36794,87335.0,87328.0,0.01145108]
[1766547910831,0.36794,87335.0,87331.0,0.01145068]
[1766547911442,0.36794,87335.0,87332.0,0.01145055]
[1766547911645,0.01148,87336.0,87333.0,0.01145042]
[1766547911937,0.05728,87336.0,87333.0,0.01145042]
[1766547912484,0.05728,87336.0,87333.0,0.06870203]
[1766547913206,0.05728,87336.0,87329.0,0.01145094]
[1766547913207,0.01180794,87346.0,87335.0,0.10996753]
[1766547913430,0.02497158,87363.0,87357.0,0.01144727]
[1766547913624,0.01184531,87372.0,87364.0,0.06867817]
[1766547913625,0.0462,87372.0,87364.0,0.06867817]
[1766547913847,0.01148,87371.0,87361.0,0.01026]
[1766547914190,0.38048536,87364.0,87361.0,0.03436038]
[1766547914319,0.38048536,87364.0,87352.0,0.05723926]
[1766547914320,0.36794,87362.0,87352.0,0.01144793]
[1766547914525,0.36794,87362.0,87356.0,1.36e-06]
[1766547914936,0.36794,87359.0,87352.0,9.399e-05]
[1766547915294,0.36794,87359.0,87350.0,0.01351959]
[1766547915295,8.901e-05,87352.0,87350.0,0.01351959]
[1766547915582,0.37938727,87357.0,87347.0,0.01144859]
[1766547915583,0.36830098,87350.0,87347.0,0.01144859]
[1766547915778,0.36794,87350.0,87347.0,0.01155123]
[1766547915954,0.01148,87351.0,87349.0,0.05724163]
[1766547916115,1e-08,87351.0,87349.0,0.05724163]
[1766547916318,0.03436392,87362.0,87352.0,0.05723967]
[1766547916541,0.04581054,87362.0,87353.0,0.0114478]
[1766547916785,0.01148,87361.0,87352.0,0.01144793]
[1766547917233,0.01148,87361.0,87353.0,0.0114478]
[1766547917462,0.36794,87360.0,87353.0,0.0114478]
[1766547917753,0.000451,87353.0,87350.0,0.01144819]
[1766547918058,0.01148,87352.0,87349.0,0.01144832]
[1766547919460,0.01148,87352.0,87350.0,0.01144819]
[1766547919650,0.011382,87352.0,87350.0,0.06868914]
[1766547920368,0.000549,87350.0,87348.0,0.01144845]
[1766547920518,0.011382,87352.0,87349.0,0.01144832]
[1766547921318,0.011382,87352.0,87351.0,0.05724032]
[1766547923778,0.011382,87352.0,87349.0,0.06868995]
[1766547924101,0.011382,87352.0,87349.0,0.01144832]
[1766547924244,0.011382,87352.0,87349.0,0.06868942]
[1766547925674,0.011382,87352.0,87349.0,0.01144832]
[1766547926145,0.00029234,87352.0,87350.0,0.05724098]
[1766547926535,0.00029234,87352.0,87349.0,0.01144832]
[1766547928777,0.000549,87349.0,87347.0,0.00010264]
[1766547929096,0.00029234,87352.0,87347.0,0.01155123]
[1766547929296,0.00044736,87347.0,87344.0,0.01144898]
[1766547929544,0.00044736,87347.0,87344.0,0.01155611]
[1766547929715,0.36092234,87352.0,87343.0,0.01144911]
[1766547929922,0.36092234,87352.0,87345.0,0.01144885]
[1766547930169,0.36092234,87352.0,87346.0,0.01144872]
[1766547930936,0.36092234,87352.0,87349.0,0.01144832]
[1766547931139,0.00029234,87352.0,87349.0,0.06868946]
[1766547931309,0.36063,87358.0,87353.0,0.0114478]
[1766547931517,0.01148,87357.0,87354.0,0.01144767]
[1766547931924,0.01148,87357.0,87350.0,0.0686886]
[1766547932190,0.01148,87357.0,87350.0,0.01144819]
[1766547932338,0.000549,87350.0,87347.0,0.01144859]
[1766547932548,0.36063,87356.0,87347.0,0.01144859]
[1766547932948,0.01144767,87354.0,87345.0,0.11239]
[1766547933157,0.37207754,87355.0,87345.0,0.01144885]
[1766547933358,0.01144767,87354.0,87344.0,0.01144898]
[1766547933565,0.36063,87354.0,87346.0,0.01144872]
[1766547933757,0.000549,87346.0,87345.0,0.01144885]
[1766547934122,0.36063,87354.0,87347.0,0.01144859]
[1766547934321,0.01148,87352.0,87345.0,0.01144885]
[1766547934541,0.01148,87352.0,87347.0,0.01144859]
[1766547934841,0.37378,87351.0,87345.0,0.01144885]
[1766547935036,0.37378,87351.0,87343.0,0.05735221]
[1766547935236,0.37378,87351.0,87343.0,0.06880132]
[1766547935465,0.37378,87351.0,87344.0,0.01144898]
[1766547935664,0.37378,87351.0,87346.0,0.01144872]
[1766547936075,0.14316969,87421.0,87343.0,0.00010722]
[1766547936076,0.37378,87369.0,87362.0,0.01144662]
[1766547936274,0.38526,87368.0,87362.0,0.01144662]
[1766547936435,0.38526,87368.0,87362.0,0.01089762]
[1766547936635,0.38526,87368.0,87363.0,0.01144649]
[1766547937264,0.38526,87368.0,87365.0,0.01144623]
[1766547938090,0.38526,87368.0,87364.0,0.01144636]
[1766547938290,0.38526,87368.0,87365.0,0.01144623]
[1766547939170,0.38526,87368.0,87361.0,0.01144675]
[1766547939171,0.00055,87365.0,87360.0,0.01144688]
[1766547939371,0.38526,87368.0,87360.0,0.01144688]
[1766547939573,0.38526,87368.0,87362.0,0.01144662]
[1766547939785,0.38526,87368.0,87361.0,0.01144675]
[1766547940412,0.38526,87368.0,87362.0,0.01144662]
[1766547940986,0.38526,87368.0,87359.0,0.06868171]
[1766547941188,0.38526,87368.0,87360.0,0.01144688]
[1766547941414,0.38526,87368.0,87362.0,0.01144662]
[1766547941821,0.38526,87368.0,87362.0,0.01089662]
[1766547942233,0.38526,87368.0,87363.0,0.01144649]
[1766547942439,0.38526,87368.0,87361.0,0.01144675]
[1766547942642,0.38526,87368.0,87362.0,0.01144662]
[1766547943945,0.38526,87368.0,87363.0,0.01144649]
[1766547944471,0.38526,87368.0,87362.0,0.01144662]
[1766547944639,0.38526,87368.0,87363.0,0.01144649]
[1766547946098,0.38526,87368.0,87364.0,0.01144636]
[1766547946499,0.38526,87368.0,87363.0,0.01144649]
[1766547946741,0.38526,87368.0,87364.0,0.01144636]
[1766547947000,0.01148,87367.0,87365.0,0.01144623]
[1766547947238,0.00025092,87371.0,87368.0,0.01144583]
[1766547947453,0.01148,87370.0,87368.0,0.01144583]
[1766547948264,0.01148,87370.0,87368.0,0.0686745]
[1766547948463,0.0004,87372.0,87370.0,0.05722788]
[1766547948673,0.0004,87372.0,87369.0,0.0114457]
[1766547949770,0.0004,87372.0,87369.0,0.01155292]
[1766547950179,0.0004,87372.0,87369.0,0.00010722]
[1766547950395,0.00044178,87369.0,87366.0,0.0114461]
[1766547950533,0.00044178,87369.0,87366.0,0.00010729]
[1766547950731,0.00044178,87369.0,87363.0,0.20080864]
[1766547950732,0.0004,87372.0,87363.0,0.01144649]
[1766547950945,0.37378,87371.0,87363.0,0.01144649]
[1766547951259,0.37378,87371.0,87364.0,0.01144636]
[1766547951436,0.37378,87371.0,87365.0,0.01144623]
[1766547951637,0.37378,87371.0,87364.0,0.01144636]
[1766547951833,0.37378,87371.0,87365.0,0.01144623]
[1766547952055,0.37378,87371.0,87365.0,0.01114609]
[1766547952486,0.37378,87371.0,87368.0,0.01144583]
[1766547952691,0.0004,87372.0,87369.0,0.0114457]
[1766547952988,0.0004,87372.0,87366.0,0.25267363]
[1766547953191,0.000442,87369.0,87366.0,0.12141363]
[1766547953528,0.0004,87372.0,87367.0,0.01144596]
[1766547953672,0.0004,87372.0,87366.0,0.12141363]
[1766547954082,0.000992,87366.0,87360.0,0.14215688]
[1766547954281,0.000992,87366.0,87363.0,0.01144649]
[1766547954504,0.37418,87372.0,87363.0,0.01144649]
[1766547954645,0.37418,87372.0,87366.0,0.0114461]
[1766547955599,0.37418,87372.0,87365.0,0.01144623]
[1766547955791,0.37418,87372.0,87366.0,0.0114461]
[1766547956222,0.37418,87372.0,87365.0,0.01144623]
[1766547957074,0.37418,87372.0,87366.0,0.0114461]
[1766547957762,0.37418,87372.0,87365.0,0.01144623]
[1766547958134,0.37418,87372.0,87366.0,0.0114461]
[1766547958335,0.37418,87372.0,87366.0,0.01114605]
[1766547958702,0.37418,87372.0,87363.0,0.01144649]
[1766547958922,0.37418,87372.0,87364.0,0.01144636]
[1766547959890,0.37418,87372.0,87365.0,0.01144623]
[1766547960524,0.37418,87372.0,87364.0,0.01144636]
[1766547960706,0.37418,87372.0,87365.0,0.01144623]
[1766547961091,0.37418,87372.0,87361.0,0.05723317]
[1766547961092,0.08018023,87376.0,87361.0,0.05723317]
[1766547961093,0.34003,87403.0,87389.0,0.01144308]
[1766547961261,0.34003,87403.0,87383.0,0.27136]
[1766547961262,0.000442,87389.0,87386.0,0.01144348]
[1766547961840,0.00059584,87390.0,87388.0,0.05721556]
[1766547962020,0.34003,87391.0,87388.0,0.01144321]
[1766547962228,0.34003,87391.0,87385.0,0.01144361]
[1766547962229,0.00055,87388.0,87385.0,0.01144361]
[1766547962480,0.34003,87391.0,87388.0,0.03434854]
[1766547962697,0.34003,87391.0,87388.0,0.01144321]
[1766547963599,0.01148,87396.0,87391.0,0.0112499]
[1766547963977,0.35151,87396.0,87391.0,0.0111429]
[1766547964182,0.35151,87396.0,87392.0,0.01144269]
[1766547964852,0.35151,87396.0,87391.0,0.0111429]
[1766547965052,0.35151,87396.0,87392.0,0.01144269]
[1766547965909,0.35151,87396.0,87391.0,0.0111429]
[1766547966279,0.35151,87396.0,87392.0,0.01144269]
[1766547966486,0.335,87396.0,87393.0,0.01144256]
[1766547966887,0.00010727,87403.0,87397.0,0.01144204]
[1766547967107,0.00010727,87403.0,87399.0,0.01144177]
[1766547967309,0.00010727,87403.0,87394.0,0.01144243]
[1766547967310,0.000549,87399.0,87396.0,0.01144217]
[1766547967518,0.00081532,87397.0,87396.0,0.06865295]
[1766547968164,0.34003,87402.0,87399.0,0.01144177]
[1766547968808,0.000549,87399.0,87396.0,0.06865295]
[1766547969166,0.34003,87402.0,87398.0,0.0114419]
[1766547969366,0.34003,87402.0,87396.0,0.01144217]
[1766547969367,0.01148,87401.0,87396.0,0.01144217]
[1766547969941,0.01148,87401.0,87397.0,0.01144204]
[1766547970146,0.01148,87401.0,87396.0,0.01144217]
[1766547970385,0.01148,87401.0,87397.0,0.01144204]
[1766547970559,0.01148,87401.0,87398.0,0.0114419]
[1766547970994,0.000549,87398.0,87390.0,0.01144295]
[1766547971203,0.000549,87398.0,87388.0,0.33587]
[1766547971404,0.35147177,87399.0,87389.0,0.01144308]
[1766547971819,0.34003,87398.0,87389.0,0.01144308]
[1766547972207,0.34003,87398.0,87390.0,0.01144295]
[1766547972434,0.34003,87398.0,87391.0,0.01144282]
[1766547972645,0.34003,87398.0,87389.0,0.01144308]
[1766547972849,0.01148,87401.0,87398.0,0.0114419]
[1766547973205,0.01148,87401.0,87395.0,0.0114423]
[1766547973410,0.01148,87401.0,87397.0,0.01144204]
[1766547974174,0.01148,87401.0,87394.0,0.01144243]
[1766547974374,0.01148,87401.0,87395.0,0.0114423]
[1766547974819,0.01148,87401.0,87393.0,0.01144256]
[1766547975056,0.34003,87400.0,87392.0,0.01144269]
[1766547975262,0.34003,87400.0,87388.0,0.01148]
[1766547975263,0.34003,87391.0,87388.0,0.01144256]
[1766547975463,0.34003,87391.0,87382.0,0.01148]
[1766547975668,0.01199269,87392.0,87381.0,0.01144413]
[1766547975669,0.34003,87389.0,87381.0,0.01144413]
[1766547975872,0.35147334,87387.0,87378.0,0.01148]
[1766547976041,0.34003,87387.0,87378.0,0.01148]
[1766547976623,0.34003,87387.0,87378.0,0.02292452]
[1766547976816,0.34003,87387.0,87378.0,0.01144452]
[1766547977027,0.35147334,87387.0,87377.0,0.01144465]
[1766547977230,0.08013835,87390.0,87368.0,0.01144583]
[1766547977231,0.34058,87377.0,87368.0,0.01144583]
[1766547977440,0.34058,87377.0,87370.0,0.01144557]
[1766547977679,0.34003,87377.0,87372.0,0.01144531]
[1766547978392,0.34003,87377.0,87370.0,0.01144557]
[1766547978594,0.34003,87377.0,87371.0,0.01144544]
[1766547978989,0.34003,87377.0,87369.0,0.0114457]
[1766547979220,0.34003,87377.0,87335.0,0.20174461]
[1766547979221,0.01144623,87365.0,87360.0,0.0001]
[1766547979413,0.35147596,87367.0,87360.0,0.0001]
[1766547979566,0.34003,87367.0,87360.0,0.01154688]
[1766547979779,0.34003,87367.0,87361.0,0.01144675]
[1766547979958,0.34003,87367.0,87360.0,0.0001]
[1766547980362,0.34003,87367.0,87362.0,0.01144662]
[1766547980560,0.34003,87367.0,87361.0,0.01144675]
[1766547980759,0.34003,87367.0,87360.0,0.0001]
[1766547981220,0.34003,87367.0,87358.0,0.01144714]
[1766547981355,0.34003,87367.0,87359.0,0.01144701]
[1766547982037,0.34003,87367.0,87358.0,0.01144714]
[1766547982248,0.34003,87367.0,87359.0,0.01144701]
[1766547982661,0.34003,87367.0,87358.0,0.01144714]
[1766547982868,0.34003,87367.0,87355.0,0.02292754]
[1766547982869,0.35147623,87365.0,87355.0,0.02292754]
[1766547983074,0.00055,87358.0,87355.0,0.02292754]
[1766547983270,0.34003,87365.0,87357.0,0.01144727]
[1766547983896,0.34003,87365.0,87356.0,0.01144741]
[1766547984149,0.34003,87365.0,87357.0,0.01144727]
[1766547984728,0.34003,87365.0,87356.0,0.01144741]
[1766547985155,0.35147623,87365.0,87355.0,0.02292754]
[1766547985749,0.34003,87363.0,87355.0,0.01144754]
[1766547985928,0.34003,87363.0,87356.0,0.01144741]
[1766547986345,0.34003,87363.0,87355.0,0.01144754]
[1766547986583,0.34003,87363.0,87354.0,0.01144767]
[1766547987194,0.34003,87363.0,87355.0,0.01144754]
[1766547987690,0.34003,87363.0,87354.0,0.01144767]
[1766547987892,0.35147649,87363.0,87353.0,0.0114478]
[1766547988104,0.35147649,87363.0,87353.0,0.01150495]
[1766547988254,0.38759662,87362.0,87352.0,0.0067162]
[1766547988456,0.00055,87352.0,87348.0,0.01144845]
[1766547988680,0.00055,87352.0,87349.0,0.01144832]
[1766547988879,0.37615,87353.0,87350.0,0.01144819]
[1766547990706,0.375601,87353.0,87350.0,0.06868911]
[1766547991998,0.375601,87353.0,87350.0,0.01144819]
[1766547992207,0.38763,87358.0,87352.0,0.01144793]
[1766547992506,0.38763,87358.0,87353.0,0.0114478]
[1766547992915,0.38763,87358.0,87354.0,0.01144767]
[1766547995251,0.38763,87358.0,87353.0,0.0114478]
[1766547995633,0.38763,87358.0,87355.0,0.01144754]
[1766547995843,0.01148,87358.0,87355.0,0.01144754]
[1766547996243,0.00010635,87362.0,87359.0,0.01144701]
[1766547996441,0.01148,87361.0,87359.0,0.06868187]
[1766547996999,0.01148,87361.0,87359.0,0.01144701]
[1766547997251,0.01148,87361.0,87358.0,0.01144714]
[1766547998486,0.01148,87361.0,87358.0,0.06868228]
[1766547999033,0.00034639,87361.0,87358.0,0.06868228]
[1766547999340,0.37607,87374.0,87365.0,0.05723115]
[1766547999525,0.37607,87374.0,87369.0,0.0114457]
[1766547999526,0.38755,87374.0,87369.0,0.0114457]
[1766547999831,0.000549,87369.0,87368.0,0.01144583]
[1766548000210,0.38755,87374.0,87369.0,0.0114457]
[1766548000472,0.38755,87374.0,87371.0,0.01144544]
[1766548000852,0.0459,87380.0,87371.0,0.01144544]
[1766548000853,0.01148,87378.0,87371.0,0.01144544]
[1766548003534,0.01148,87378.0,87370.0,0.01144557]
[1766548003709,0.01148,87378.0,87371.0,0.01144544]
[1766548004083,0.01148,87378.0,87365.0,0.0572306]
[1766548004084,0.01144256,87393.0,87380.0,0.01144426]
[1766548004312,0.01148,87392.0,87380.0,0.39404061]
[1766548004638,0.01148,87392.0,87383.0,0.01144387]
[1766548004809,0.38755,87392.0,87383.0,0.01144387]
[1766548005634,0.38755,87392.0,87384.0,0.01144374]
[1766548005807,0.38755,87392.0,87383.0,0.01144387]
[1766548006215,0.01144282,87391.0,87382.0,0.011444]
[1766548006568,0.37607,87391.0,87382.0,0.011444]
[1766548006745,0.37607,87391.0,87383.0,0.01144387]
[1766548006953,0.37607,87391.0,87382.0,0.011444]
[1766548007366,0.38751282,87391.0,87382.0,0.011444]
[1766548007661,0.37607,87391.0,87382.0,0.011444]
[1766548008217,0.01144295,87390.0,87380.0,0.01155061]
[1766548008419,0.37607,87389.0,87380.0,0.01155061]
[1766548009306,0.37607,87389.0,87381.0,0.01144413]
[1766548009504,0.37607,87389.0,87383.0,0.01144387]
[1766548009872,0.37607,87389.0,87384.0,0.01144374]
[1766548010073,0.37607,87389.0,87383.0,0.01144387]
[1766548010567,0.37607,87389.0,87386.0,0.01144348]
[1766548010939,0.01148,87392.0,87388.0,0.01144321]
[1766548011145,0.00055,87388.0,87384.0,0.01144374]
[1766548011349,0.37607,87391.0,87381.0,0.05722016]
[1766548011566,0.37607,87391.0,87382.0,0.011444]
[1766548011765,0.37607,87391.0,87383.0,0.01144387]
[1766548011969,0.37607,87391.0,87382.0,0.011444]
[1766548012800,0.37607,87391.0,87383.0,0.01144387]
[1766548013881,0.37607,87391.0,87384.0,0.01144374]
[1766548014065,0.37607,87391.0,87388.0,0.01144321]
[1766548014506,0.37607,87391.0,87384.0,0.06866209]
[1766548014704,0.37607,87391.0,87385.0,0.01144361]
[1766548015278,0.37607,87391.0,87386.0,0.01144348]
[1766548015498,0.01148,87392.0,87388.0,0.01144321]
[1766548015875,0.01148,87392.0,87384.0,0.06866234]
[1766548015876,0.00055,87388.0,87384.0,0.06866234]
[1766548016008,0.38755,87392.0,87385.0,0.01144361]
[1766548016411,0.01144348,87386.0,87369.0,0.0114457]
[1766548016610,0.01144348,87386.0,87373.0,0.01144518]
[1766548016611,0.38751374,87384.0,87373.0,0.01144518]
[1766548016853,0.38751374,87384.0,87372.0,0.03660405]
[1766548016854,0.387514,87382.0,87372.0,0.01144531]
[1766548017241,0.387514,87382.0,87373.0,0.01144518]
[1766548017420,0.387514,87382.0,87372.0,0.01144531]
[1766548017621,0.387514,87382.0,87373.0,0.01144518]
[1766548017941,0.37607,87381.0,87372.0,0.01144531]
[1766548018140,0.37607,87381.0,87373.0,0.01144518]
[1766548018790,0.37607,87381.0,87372.0,0.01144531]
[1766548018959,0.37607,87381.0,87373.0,0.01144518]
[1766548019191,0.37607,87381.0,87372.0,0.01144531]
[1766548019383,0.38751413,87381.0,87372.0,0.01144531]
[1766548019619,0.38751413,87381.0,87371.0,0.01144544]
[1766548019991,0.06866356,87383.0,87372.0,0.01144531]
[1766548020168,0.38046,87382.0,87374.0,0.01144505]
[1766548020577,0.38046,87382.0,87301.0,0.10996753]
[1766548020790,0.01144623,87365.0,87355.0,0.01144754]
[1766548020966,0.38046,87364.0,87355.0,0.01144754]
[1766548021164,0.38046,87364.0,87356.0,0.01144741]
[1766548021504,0.38046,87364.0,87355.0,0.06868519]
[1766548021505,0.38046,87364.0,87355.0,0.06868524]
[1766548021687,0.38046,87364.0,87356.0,0.01144741]
[1766548021879,0.38046,87362.0,87354.0,0.01148]
[1766548022077,0.38046,87362.0,87352.0,0.01144793]
[1766548022291,0.38046,87362.0,87353.0,0.0114478]
[1766548022710,0.02292649,87363.0,87351.0,0.01144806]
[1766548022711,0.39190688,87360.0,87351.0,0.01144806]
[1766548022980,0.38046,87360.0,87352.0,0.01144793]
[1766548024140,0.38046,87360.0,87351.0,0.01144806]
[1766548024436,0.38046,87360.0,87347.0,0.0572428]
[1766548024749,0.38046,87360.0,87350.0,0.01144819]
[1766548025310,0.38046,87360.0,87351.0,0.01144806]
[1766548025525,0.38046,87360.0,87352.0,0.01144793]
[1766548025728,0.38046,87360.0,87351.0,0.01144806]
[1766548028396,0.38046,87360.0,87353.0,0.0114478]
[1766548028597,0.01144662,87362.0,87353.0,0.0114478]
[1766548028776,0.01148,87363.0,87360.0,0.000549]
[1766548029403,0.01148,87363.0,87356.0,0.01144741]
[1766548029601,0.01144623,87365.0,87355.0,0.01144754]
[1766548029763,0.01148,87364.0,87356.0,0.01144741]
[1766548029965,0.01148,87364.0,87355.0,0.01144754]
[1766548030165,0.01148,87364.0,87356.0,0.01144741]
[1766548030672,0.01148,87364.0,87353.0,0.0114478]
[1766548030673,0.42626,87374.0,87371.0,0.01144544]
[1766548030876,0.01148,87379.0,87367.0,0.01144596]
[1766548031096,0.38101,87371.0,87362.0,0.01144662]
[1766548031300,0.38101,87371.0,87361.0,0.01148]
[1766548031473,0.38046,87371.0,87362.0,0.05723312]
[1766548031675,0.38046,87371.0,87362.0,0.01144662]
[1766548031879,0.38046,87371.0,87363.0,0.01144649]
[1766548032379,0.38046,87371.0,87364.0,0.01144636]
[1766548032680,0.38046,87371.0,87361.0,0.02292675]
[1766548032905,0.38046,87371.0,87363.0,0.01144649]
[1766548033075,0.38046,87371.0,87362.0,0.01144662]
[1766548034008,0.38046,87371.0,87364.0,0.01144636]
[1766548034298,0.01148,87372.0,87371.0,0.000549]
[1766548034491,0.01148,87372.0,87368.0,0.01144583]
[1766548035101,0.01148,87372.0,87369.0,0.0114457]
[1766548035931,0.01148,87372.0,87367.0,0.01144596]